fUSD/lending_fUSD_20240626
["ID","MTS","AMOUNT","RATE_DAILY","PERIOD"]
[330449852,1719421035176,-500.0,0.00043835,120]
[330449853,1719421035213,-500.0,0.00043835,120]
[330449854,1719421035248,-511.01,0.00043835,120]
[330449855,1719421035284,-500.0,0.00043835,120]
[330449856,1719421035320,-500.0,0.00043835,120]
[330449857,1719421035357,-1271.85,0.00043835,120]
[330449858,1719421035394,-698.3,0.00043835,120]
[330449859,1719421035431,-500.0,0.00043835,120]
[330449860,1719421035468,-500.0,0.00043835,120]
[330449861,1719421035503,-684.25,0.00043835,120]
[330449862,1719421035540,-2535.06,0.00043835,120]
[330449863,1719421035581,-878.83,0.00043835,120]
[330449864,1719421035624,-958.16,0.00043835,120]
[330449865,1719421035664,-500.0,0.00043835,120]
[330449866,1719421035706,-500.0,0.00043835,120]
[330449867,1719421035838,-500.0,0.00043835,120]
[330449868,1719421035874,-740.85,0.00043835,120]
[330449869,1719421035910,-2570.79,0.00043835,120]
[330449870,1719421035946,-643.93,0.00043835,120]
[330449871,1719421035981,-1189.32,0.00043835,120]
[330449872,1719421036017,-500.0,0.00043835,120]
[330449873,1719421036052,-4169.94,0.00043835,120]
[330449874,1719421036088,-3755.54,0.00043835,120]
[330449875,1719421036123,-1354.63,0.00043835,120]
[330449876,1719421036157,-2501.0,0.00043835,120]
[330449877,1719421036191,-500.0,0.00043835,120]
[330449878,1719421036228,-935.52,0.00043835,120]
[330449879,1719421036261,-501.68445632,0.00043835,120]
[330449880,1719421036293,-500.0,0.00043835,120]
[330449881,1719421036329,-5621.91,0.00043835,120]
[330449882,1719421036362,-500.0,0.00043835,120]
[330449883,1719421036396,-603.34950843,0.00043835,120]
[330449884,1719421036428,-500.0,0.00043835,120]
[330449885,1719421036463,-2627.34,0.00043835,120]
[330449886,1719421036497,-928.4,0.00043835,120]
[330449887,1719421036530,-500.0,0.00043835,120]
[330449888,1719421036563,-500.0,0.00043835,120]
[330449889,1719421036599,-500.0,0.00043835,120]
[330449890,1719421036634,-546.26,0.00043835,120]
[330449891,1719421036669,-500.0,0.00043835,120]
[330449892,1719421036706,-500.0,0.00043835,120]
[330449893,1719421036745,-1217.93,0.00043835,120]
[330449894,1719421036778,-500.54916979,0.00043835,120]
[330449895,1719421036813,-1026.86,0.00043835,120]
[330449896,1719421036848,-500.0,0.00043835,120]
[330449897,1719421036881,-1643.72,0.00043835,120]
[330449898,1719421036917,-1744.08,0.00043835,120]
[330449899,1719421036950,-500.0,0.00043835,120]
[330449900,1719421036984,-1329.43,0.00043835,120]
[330449901,1719421037019,-500.0,0.00043835,120]
[330449902,1719421037054,-500.0,0.00043835,120]
[330449903,1719421037088,-2069.35,0.00043835,120]
[330449904,1719421037123,-500.37014945,0.00043835,120]
[330449905,1719421037158,-500.0,0.00043835,120]
[330449906,1719421037195,-500.0,0.00043835,120]
[330449907,1719421037228,-1673.5,0.00043835,120]
[330449908,1719421037264,-500.0,0.00043835,120]
[330449909,1719421037298,-500.0,0.00043835,120]
[330449910,1719421037334,-500.0,0.00043835,120]
[330449911,1719421037370,-500.0,0.00043835,120]
[330449912,1719421037403,-500.0,0.00043835,120]
[330449913,1719421037436,-500.0,0.00043835,120]
[330449914,1719421037471,-500.0,0.00043835,120]
[330449915,1719421037506,-500.0,0.00043835,120]
[330449916,1719421037540,-609.39,0.00043835,120]
[330449917,1719421037575,-1390.81,0.00043835,120]
[330449918,1719421037611,-500.0,0.00043835,120]
[330449919,1719421037650,-2380.56,0.00043835,120]
[330449920,1719421037685,-500.0,0.00043835,120]
[330449921,1719421037725,-500.0,0.00043835,120]
[330449922,1719421037759,-500.0,0.00043835,120]
[330449923,1719421037795,-500.0,0.00043835,120]
[330449924,1719421037830,-798.5,0.00043835,120]
[330449925,1719421037866,-711.85,0.00043835,120]
[330449926,1719421037901,-500.0,0.00043835,120]
[330449927,1719421037935,-653.01,0.00043835,120]
[330449928,1719421037970,-500.0,0.00043835,120]
[330449929,1719421038002,-4710.37,0.00043835,120]
[330449930,1719421038036,-500.0,0.00043835,120]
[330449931,1719421038070,-500.0,0.00043835,120]
[330449932,1719421038106,-500.0,0.00043835,120]
[330449933,1719421038143,-500.49642882,0.00043835,120]
[330449934,1719421038178,-500.0,0.00043835,120]
[330449935,1719421038210,-500.0,0.00043835,120]
[330449936,1719421038244,-500.0,0.00043835,120]
[330449937,1719421038276,-500.0,0.00043835,120]
[330449938,1719421038309,-1422.83,0.00043835,120]
[330449939,1719421038344,-500.0,0.00043835,120]
[330449940,1719421038377,-2185.55,0.00043835,120]
[330449941,1719421038411,-500.0,0.00043835,120]
[330449942,1719421038447,-513.74,0.00043835,120]
[330449943,1719421038480,-500.0,0.00043835,120]
[330449944,1719421038515,-5000.0,0.00043835,120]
[330449945,1719421038550,-500.0,0.00043835,120]
[330449946,1719421038585,-500.0,0.00043835,120]
[330449947,1719421038621,-2049.48,0.00043835,120]
[330449948,1719421038655,-500.0,0.00043835,120]
[330449949,1719421038688,-500.0,0.00043835,120]
[330449950,1719421038727,-500.0,0.00043835,120]
[330449951,1719421038763,-158.90814838,0.00043835,120]
[330449952,1719421038797,-500.0,0.00043835,120]
[330449953,1719421038831,-500.0,0.00043835,120]
[330449954,1719421038870,-500.0,0.00043835,120]
[330449955,1719421038905,-500.0,0.00043835,120]
[330449956,1719421038940,-965.7,0.00043835,120]
[330449957,1719421038979,-617.94041676,0.00043835,120]
[330449958,1719421039018,-638.36,0.00043835,120]
[330449959,1719421039056,-500.0,0.00043835,120]
[330449960,1719421039091,-500.0,0.00043835,120]
[330449961,1719421039124,-500.0,0.00043835,120]
[330449962,1719421039158,-500.0,0.00043835,120]
[330449963,1719421039191,-500.59640837,0.00043835,120]
[330449964,1719421039224,-4054.81,0.00043835,120]
[330449965,1719421039256,-500.0,0.00043835,120]
[330449966,1719421039290,-884.78,0.00043835,120]
[330449967,1719421039330,-500.0,0.00043835,120]
[330449968,1719421039366,-500.0,0.00043835,120]
[330449969,1719421039400,-500.0,0.00043835,120]
[330449970,1719421039435,-1472.1,0.00043835,120]
[330449971,1719421039469,-500.0,0.00043835,120]
[330449972,1719421039504,-500.0,0.00043835,120]
[330449973,1719421039673,-500.0,0.00043835,120]
[330449974,1719421039711,-500.0,0.00043835,120]
[330449975,1719421039748,-500.0,0.00043835,120]
[330449976,1719421039789,-1011.87,0.00043835,120]
[330449977,1719421039825,-502.06356925,0.00043835,120]
[330449978,1719421039860,-500.0,0.00043835,120]
[330449979,1719421039895,-500.0,0.00043835,120]
[330449980,1719421039930,-500.0,0.00043835,120]
[330449981,1719421039965,-500.0,0.00043835,120]
[330449982,1719421040001,-500.0,0.00043835,120]
[330449983,1719421040036,-500.0,0.00043835,120]
[330449984,1719421040071,-1236.31,0.00043835,120]
[330449985,1719421040104,-234.79554607,0.00043835,120]
[330449986,1719421040139,-1060.4,0.00043835,120]
[330449987,1719421040175,-500.0,0.00043835,120]
[330449988,1719421040207,-500.0,0.00043835,120]
[330449989,1719421040241,-3548.2,0.00043835,120]
[330449990,1719421040274,-500.0,0.00043835,120]
[330449991,1719421040308,-500.0,0.00043835,120]
[330449992,1719421040343,-1892.91,0.00043835,120]
[330449993,1719421040377,-500.0,0.00043835,120]
[330449994,1719421040410,-500.0,0.00043835,120]
[330449995,1719421040446,-1734.23,0.00043835,120]
[330449996,1719421040479,-500.0,0.00043835,120]
[330449997,1719421040514,-725.8,0.00043835,120]
[330449998,1719421040550,-500.0,0.00043835,120]
[330449999,1719421040585,-500.0,0.00043835,120]
[330450000,1719421040619,-500.0,0.00043835,120]
[330450001,1719421040654,-576.59,0.00043835,120]
[330450002,1719421040686,-500.0,0.00043835,120]
[330450003,1719421040721,-1099.6,0.00043835,120]
[330450004,1719421040756,-500.0,0.00043835,120]
[330450005,1719421040791,-2687.59,0.00043835,120]
[330450006,1719421040824,-2172.62,0.00043835,120]
[330450007,1719421040859,-917.69,0.00043835,120]
[330450008,1719421040892,-500.0,0.00043835,120]
[330450009,1719421040923,-1008.92,0.00043835,120]
[330450010,1719421040954,-500.0,0.00043835,120]
[330450011,1719421040988,-2029.78,0.00043835,120]
[330450012,1719421041019,-500.0,0.00043835,120]
[330450013,1719421041051,-500.0,0.00043835,120]
[330450014,1719421041086,-500.0,0.00043835,120]
[330450015,1719421041117,-500.0,0.00043835,120]
[330450016,1719421041148,-1001.73,0.00043835,120]
[330450017,1719421041182,-500.0,0.00043835,120]
[330450018,1719421041214,-2498.8,0.00043835,120]
[330450019,1719421041246,-500.0,0.00043835,120]
[330450020,1719421041279,-500.0,0.00043835,120]
[330450021,1719421041312,-500.0,0.00043835,120]
[330450022,1719421041345,-500.0,0.00043835,120]
[330450023,1719421041379,-500.0,0.00043835,120]
[330450024,1719421041411,-500.0,0.00043835,120]
[330450025,1719421041444,-699.07,0.00043835,120]
[330450026,1719421041478,-500.0,0.00043835,120]
[330450027,1719421041511,-1212.02,0.00043835,120]
[330450028,1719421041544,-500.0,0.00043835,120]
[330450029,1719421041579,-500.0,0.00043835,120]
[330450030,1719421041615,-1655.56,0.00043835,120]
[330450031,1719421041650,-500.0,0.00043835,120]
[330450032,1719421041684,-500.0,0.00043835,120]
[330450033,1719421041718,-500.0,0.00043835,120]
[330450034,1719421041751,-500.0,0.00043835,120]
[330450035,1719421041787,-500.0,0.00043835,120]
[330450036,1719421041821,-500.20989867,0.00043835,120]
[330450037,1719421041855,-500.0,0.00043835,120]
[330450038,1719421041890,-500.0,0.00043835,120]
[330450039,1719421041924,-500.0,0.00043835,120]
[330450040,1719421041959,-500.0,0.00043835,120]
[330450041,1719421041996,-500.0,0.00043835,120]
[330450042,1719421042030,-699.16,0.00043835,120]
[330450043,1719421042063,-500.0,0.00043835,120]
[330450044,1719421042097,-500.0,0.00043835,120]
[330450045,1719421042132,-500.0,0.00043835,120]
[330450046,1719421042166,-500.0,0.00043835,120]
[330450047,1719421042202,-500.0,0.00043835,120]
[330450048,1719421042236,-500.0,0.00043835,120]
[330450049,1719421042269,-500.0,0.00043835,120]
[330450050,1719421042303,-500.0,0.00043835,120]
[330450051,1719421042338,-500.0,0.00043835,120]
[330450052,1719421042375,-500.0,0.00043835,120]
[330450053,1719421042410,-280.06691717,0.00043835,120]
[330450054,1719421042446,-500.0,0.00043835,120]
[330450055,1719421042481,-2104.87,0.00043835,120]
[330450056,1719421042518,-500.0,0.00043835,120]
[330450057,1719421042553,-500.0,0.00043835,120]
[330450058,1719421042592,-500.0,0.00043835,120]
[330450059,1719421042631,-500.0,0.00043835,120]
[330450060,1719421042668,-500.0,0.00043835,120]
[330450061,1719421042706,-500.0,0.00043835,120]
[330450062,1719421043052,-500.0,0.00043835,120]
[330450063,1719421043105,-500.0,0.00043835,120]
[330450064,1719421043139,-500.0,0.00043835,120]
[330450065,1719421043173,-1059.19,0.00043835,120]
[330450066,1719421043205,-500.0,0.00043835,120]
[330450067,1719421043238,-500.0,0.00043835,120]
[330450068,1719421043271,-500.0,0.00043835,120]
[330450069,1719421043304,-500.0,0.00043835,120]
[330450070,1719421043338,-544.45,0.00043835,120]
[330450071,1719421043374,-622.99062153,0.00043835,120]
[330450072,1719421043410,-1214.98,0.00043835,120]
[330450073,1719421043444,-500.0,0.00043835,120]
[330450074,1719421043480,-500.0,0.00043835,120]
[330450075,1719421043513,-604.37,0.00043835,120]
[330450076,1719421043547,-500.0,0.00043835,120]
[330450077,1719421043582,-1084.11,0.00043835,120]
[330450078,1719421043617,-1537.04,0.00043835,120]
[330450079,1719421043651,-165.81664137,0.00043835,120]
[330450080,1719421043686,-500.0,0.00043835,120]
[330450081,1719421043720,-500.0,0.00043835,120]
[330450082,1719421043755,-1662.19,0.00043835,120]
[330450083,1719421043793,-500.0,0.00043835,120]
[330450084,1719421043825,-1645.42,0.00043835,120]
[330450085,1719421043859,-1050.95,0.00043835,120]
[330450086,1719421043894,-500.0,0.00043835,120]
[330450087,1719421043929,-2611.47,0.00043835,120]
[330450088,1719421043966,-500.0,0.00043835,120]
[330450089,1719421044004,-500.0,0.00043835,120]
[330450090,1719421044042,-500.0,0.00043835,120]
[330450091,1719421044081,-500.0,0.00043835,120]
[330450092,1719421044119,-500.0,0.00043835,120]
[330450093,1719421044155,-500.0,0.00043835,120]
[330450094,1719421044192,-500.0,0.00043835,120]
[330450095,1719421044226,-500.0,0.00043835,120]
[330450096,1719421044263,-500.0,0.00043835,120]
[330450097,1719421044298,-500.0,0.00043835,120]
[330450098,1719421044332,-500.0,0.00043835,120]
[330450099,1719421044367,-500.0,0.00043835,120]
[330450100,1719421044404,-12838.55,0.00043835,120]
[330450101,1719421044442,-500.0,0.00043835,120]
[330450102,1719421044477,-500.0,0.00043835,120]
[330450103,1719421044513,-500.0,0.00043835,120]
[330450104,1719421044547,-500.0,0.00043835,120]
[330450105,1719421044581,-2689.1,0.00043835,120]
[330450106,1719421044619,-500.0,0.00043835,120]
[330450107,1719421044656,-521.94,0.00043835,120]
[330450108,1719421044693,-1593.59,0.00043835,120]
[330450109,1719421044734,-500.0,0.00043835,120]
[330450110,1719421044772,-2357.93,0.00043835,120]
[330450111,1719421044810,-500.0,0.00043835,120]
[330450112,1719421044847,-1959.42,0.00043835,120]
[330450113,1719421044883,-500.0,0.00043835,120]
[330450114,1719421044918,-500.0,0.00043835,120]
[330450115,1719421044954,-500.0,0.00043835,120]
[330450116,1719421044991,-500.76708305,0.00043835,120]
[330450117,1719421045029,-500.0,0.00043835,120]
[330450118,1719421045066,-500.0,0.00043835,120]
[330450119,1719421045102,-500.0,0.00043835,120]
[330450120,1719421045141,-500.0,0.00043835,120]
[330450121,1719421045176,-500.0,0.00043835,120]
[330450122,1719421045212,-500.0,0.00043835,120]
[330450123,1719421045247,-1750.22,0.00043835,120]
[330450124,1719421045282,-500.0,0.00043835,120]
[330450125,1719421045317,-500.0,0.00043835,120]
[330450126,1719421045353,-518.58,0.00043835,120]
[330450127,1719421045389,-500.0,0.00043835,120]
[330450128,1719421045425,-500.0,0.00043835,120]
[330450129,1719421045463,-661.3,0.00043835,120]
[330450130,1719421045501,-500.0,0.00043835,120]
[330450131,1719421045539,-1087.19,0.00043835,120]
[330450132,1719421045576,-396.01562169,0.00043835,120]
[330450133,1719421045615,-25233.34,0.00043835,120]
[330450134,1719421045780,-500.0,0.00043835,120]
[330450135,1719421045821,-913.08,0.00043835,120]
[330450136,1719421045859,-500.0,0.00043835,120]
[330450137,1719421045896,-559.05,0.00043835,120]
[330450138,1719421045931,-551.22,0.00043835,120]
[330450139,1719421045968,-500.0,0.00043835,120]
[330450140,1719421046003,-1129.93,0.00043835,120]
[330450141,1719421046039,-2041.64,0.00043835,120]
[330450142,1719421046075,-1890.72,0.00043835,120]
[330450143,1719421046112,-500.0,0.00043835,120]
[330450144,1719421046148,-6543.11516193,0.00043835,120]
[330450145,1719421046183,-542.27,0.00043835,120]
[330450146,1719421046218,-6405.25,0.00043835,120]
[330450147,1719421046255,-500.0,0.00043835,120]
[330450148,1719421046292,-501.34958819,0.00043835,120]
[330450149,1719421046327,-5151.41,0.00043835,120]
[330450150,1719421046361,-500.0,0.00043835,120]
[330450151,1719421046396,-500.0,0.00043835,120]
[330450152,1719421046431,-1157.43,0.00043835,120]
[330450153,1719421046467,-1211.63,0.00043835,120]
[330450154,1719421046502,-500.0,0.00043835,120]
[330450155,1719421046536,-500.0,0.00043835,120]
[330450156,1719421046570,-500.0,0.00043835,120]
[330450157,1719421046606,-500.0,0.00043835,120]
[330450158,1719421046640,-500.0,0.00043835,120]
[330450159,1719421046676,-1210.99,0.00043835,120]
[330450160,1719421046711,-2326.29,0.00043835,120]
[330450161,1719421046746,-500.0,0.00043835,120]
[330450162,1719421046781,-500.0,0.00043835,120]
[330450163,1719421046819,-2468.42,0.00043835,120]
[330450164,1719421046855,-613.83,0.00043835,120]
[330450165,1719421046890,-500.0,0.00043835,120]
[330450166,1719421046925,-1510.61,0.00043835,120]
[330450167,1719421046961,-855.59,0.00043835,120]
[330450168,1719421046996,-500.0,0.00043835,120]
[330450169,1719421047031,-878.66,0.00043835,120]
[330450170,1719421047064,-500.0,0.00043835,120]
[330450171,1719421047099,-1514.18,0.00043835,120]
[330450172,1719421047135,-500.0,0.00043835,120]
[330450173,1719421047168,-878.65,0.00043835,120]
[330450174,1719421047202,-500.0,0.00043835,120]
[330450175,1719421047235,-500.0,0.00043835,120]
[330450176,1719421047268,-568.5,0.00043835,120]
[330450177,1719421047301,-1861.96,0.00043835,120]
[330450178,1719421047336,-1186.88,0.00043835,120]
[330450179,1719421047371,-500.0,0.00043835,120]
[330450180,1719421047405,-4396.48,0.00043835,120]
[330450181,1719421047439,-500.0,0.00043835,120]
[330450182,1719421047474,-2813.81,0.00043835,120]
[330450183,1719421047509,-886.69,0.00043835,120]
[330450184,1719421047544,-1151.18,0.00043835,120]
[330450185,1719421047579,-500.0,0.00043835,120]
[330450186,1719421047620,-1975.79,0.00043835,120]
[330450187,1719421047657,-4678.92,0.00043835,120]
[330450188,1719421047693,-1235.1,0.00043835,120]
[330450189,1719421047735,-1847.37,0.00043835,120]
[330450190,1719421047774,-1000.0,0.00043835,120]
[330450191,1719421047814,-1804.38,0.00043835,120]
[330450192,1719421047850,-646.6,0.00043835,120]
[330450193,1719421047887,-500.0,0.00043835,120]
[330450194,1719421047924,-500.0,0.00043835,120]
[330450195,1719421047959,-8076.29,0.00043835,120]
[330450196,1719421047995,-500.0,0.00043835,120]
[330450197,1719421048032,-2216.4,0.00043835,120]
[330450198,1719421048069,-810.06,0.00043835,120]
[330450199,1719421048106,-500.0,0.00043835,120]
[330450200,1719421048141,-1357.91,0.00043835,120]
[330450201,1719421048177,-500.0,0.00043835,120]
[330450202,1719421048211,-500.0,0.00043835,120]
[330450203,1719421048245,-3446.64,0.00043835,120]
[330450204,1719421048279,-500.0,0.00043835,120]
[330450205,1719421048315,-500.0,0.00043835,120]
[330450206,1719421048351,-2762.39,0.00043835,120]
[330450207,1719421048387,-500.0,0.00043835,120]
[330450208,1719421048423,-500.0,0.00043835,120]
[330450209,1719421048459,-1946.47,0.00043835,120]
[330450210,1719421048495,-179.50460939,0.00043835,120]
[330450211,1719421048530,-500.0,0.00043835,120]
[330450212,1719421048566,-500.0,0.00043835,120]
[330450213,1719421048603,-500.0,0.00043835,120]
[330450214,1719421048639,-500.0,0.00043835,120]
[330450215,1719421048676,-500.0,0.00043835,120]
[330450216,1719421048715,-486.23666768,0.00043835,120]
[330450217,1719421048753,-1527.44,0.00043835,120]
[330450218,1719421048794,-500.0,0.00043835,120]
[330450219,1719421048830,-500.0,0.00043835,120]
[330450220,1719421048867,-500.0,0.00043835,120]
[330450221,1719421048903,-500.0,0.00043835,120]
[330450222,1719421048940,-1500.0,0.00043835,120]
[330450223,1719421048980,-1620.11,0.00043835,120]
[330450224,1719421049019,-500.0,0.00043835,120]
[330450225,1719421049060,-500.0,0.00043835,120]
[330450226,1719421049101,-500.0,0.00043835,120]
[330450227,1719421049140,-1061.6,0.00043835,120]
[330450228,1719421049179,-624.7,0.00043835,120]
[330450229,1719421049216,-500.0,0.00043835,120]
[330450230,1719421049254,-936.82,0.00043835,120]
[330450231,1719421049296,-1848.08,0.00043835,120]
[330450232,1719421049332,-500.0,0.00043835,120]
[330450233,1719421049371,-2411.38,0.00043835,120]
[330450234,1719421049415,-500.0,0.00043835,120]
[330450235,1719421049451,-500.0,0.00043835,120]
[330450236,1719421049488,-500.0,0.00043835,120]
[330450237,1719421049524,-500.0,0.00043835,120]
[330450238,1719421049560,-500.0,0.00043835,120]
[330450239,1719421049597,-2063.39,0.00043835,120]
[330450240,1719421049785,-2500.58,0.00043835,120]
[330450241,1719421049824,-500.0,0.00043835,120]
[330450242,1719421049859,-3206.8,0.00043835,120]
[330450243,1719421049895,-3093.54,0.00043835,120]
[330450244,1719421049929,-3836.22,0.00043835,120]
[330450245,1719421049964,-882.93,0.00043835,120]
[330450246,1719421049999,-500.0,0.00043835,120]
[330450247,1719421050033,-500.0,0.00043835,120]
[330450248,1719421050069,-500.0,0.00043835,120]
[330450249,1719421050105,-1282.7,0.00043835,120]
[330450250,1719421050139,-500.0,0.00043835,120]
[330450251,1719421050173,-500.0,0.00043835,120]
[330450252,1719421050209,-500.0,0.00043835,120]
[330450253,1719421050247,-957.59,0.00043835,120]
[330450254,1719421050283,-3991.63,0.00043835,120]
[330450255,1719421050320,-1393.84,0.00043835,120]
[330450256,1719421050355,-500.0,0.00043835,120]
[330450257,1719421050389,-500.0,0.00043835,120]
[330450258,1719421050424,-659.41,0.00043835,120]
[330450259,1719421050460,-371.510127,0.00043835,120]
[330450260,1719421050498,-1588.57,0.00043835,120]
[330450261,1719421050534,-553.92,0.00043835,120]
[330450262,1719421050571,-2647.31,0.00043835,120]
[330450263,1719421050611,-1577.74,0.00043835,120]
[330450264,1719421050650,-500.0,0.00043835,120]
[330450265,1719421050686,-628.61,0.00043835,120]
[330450266,1719421050726,-500.0,0.00043835,120]
[330450267,1719421050764,-500.0,0.00043835,120]
[330450268,1719421050802,-1631.48,0.00043835,120]
[330450269,1719421050841,-500.0,0.00043835,120]
[330450270,1719421050880,-1380.52,0.00043835,120]
[330450271,1719421050918,-736.66,0.00043835,120]
[330450272,1719421050955,-500.0,0.00043835,120]
[330450273,1719421050991,-628.0,0.00043835,120]
[330450274,1719421051027,-13038.48,0.00043835,120]
[330450275,1719421051064,-500.0,0.00043835,120]
[330450276,1719421051101,-500.0,0.00043835,120]
[330450277,1719421051138,-500.0,0.00043835,120]
[330450278,1719421051174,-408.65556426,0.00043835,120]
[330450279,1719421051211,-500.0,0.00043835,120]
[330450280,1719421051247,-500.0,0.00043835,120]
[330450281,1719421051283,-500.0,0.00043835,120]
[330450282,1719421051320,-3556.53,0.00043835,120]
[330450283,1719421051357,-1840.55,0.00043835,120]
[330450284,1719421051394,-977.19,0.00043835,120]
[330450285,1719421051433,-1393.41,0.00043835,120]
[330450286,1719421051472,-500.0,0.00043835,120]
[330450287,1719421051513,-500.0,0.00043835,120]
[330450288,1719421051551,-656.83,0.00043835,120]
[330450289,1719421051588,-500.0,0.00043835,120]
[330450290,1719421051628,-652.61,0.00043835,120]
[330450291,1719421051664,-500.0,0.00043835,120]
[330450292,1719421051700,-500.0,0.00043835,120]
[330450293,1719421051740,-500.0,0.00043835,120]
[330450294,1719421051777,-500.0,0.00043835,120]
[330450295,1719421051812,-500.0,0.00043835,120]
[330450296,1719421051847,-1562.82,0.00043835,120]
[330450297,1719421051880,-723.91,0.00043835,120]
[330450298,1719421051914,-5977.35,0.00043835,120]
[330450299,1719421051947,-563.5,0.00043835,120]
[330450300,1719421051981,-500.0,0.00043835,120]
[330450301,1719421052018,-868.82,0.00043835,120]
[330450302,1719421052053,-656.52,0.00043835,120]
[330450303,1719421052087,-504.04,0.00043835,120]
[330450304,1719421052123,-18533.5,0.00043835,120]
[330450305,1719421052158,-4220.21,0.00043835,120]
[330450306,1719421052194,-173.57577747,0.00043835,120]
[330450307,1719421052230,-1076.75,0.00043835,120]
[330450308,1719421052266,-500.0,0.00043835,120]
[330450309,1719421052301,-911.12,0.00043835,120]
[330450310,1719421052338,-1357.14,0.00043835,120]
[330450311,1719421052372,-911.12,0.00043835,120]
[330450312,1719421052407,-500.0,0.00043835,120]
[330450313,1719421052442,-500.0,0.00043835,120]
[330450314,1719421052478,-911.12,0.00043835,120]
[330450315,1719421052513,-14889.68,0.00043835,120]
[330450316,1719421052549,-911.12,0.00043835,120]
[330450317,1719421052587,-911.12,0.00043835,120]
[330450318,1719421052627,-911.12,0.00043835,120]
[330450319,1719421052663,-4099.7,0.00043835,120]
[330450320,1719421052700,-911.12,0.00043835,120]
[330450321,1719421052740,-911.12,0.00043835,120]
[330450322,1719421052776,-533.12283206,0.00043835,120]
[330450323,1719421052814,-560.48,0.00043835,120]
[330450324,1719421052850,-911.12,0.00043835,120]
[330450325,1719421052887,-500.0,0.00043835,120]
[330450326,1719421052923,-911.12,0.00043835,120]
[330450327,1719421052959,-911.12,0.00043835,120]
[330450328,1719421052998,-1238.17,0.00043835,120]
[330450329,1719421053032,-911.12,0.00043835,120]
[330450330,1719421053410,-911.12,0.00043835,120]
[330450331,1719421053448,-911.12,0.00043835,120]
[330450332,1719421053487,-1356.52,0.00043835,120]
[330450333,1719421053525,-911.12,0.00043835,120]
[330450334,1719421053561,-911.12,0.00043835,120]
[330450335,1719421053598,-911.12,0.00043835,120]
[330450336,1719421053636,-911.12,0.00043835,120]
[330450337,1719421053674,-500.0,0.00043835,120]
[330450338,1719421053714,-911.12,0.00043835,120]
[330450339,1719421053753,-500.0,0.00043835,120]
[330450340,1719421053794,-911.12,0.00043835,120]
[330450341,1719421053830,-1413.83,0.00043835,120]
[330450342,1719421053868,-911.12,0.00043835,120]
[330450343,1719421053904,-911.12,0.00043835,120]
[330450344,1719421053941,-911.12,0.00043835,120]
[330450345,1719421053981,-500.0,0.00043835,90]
[330450346,1719421054023,-911.21011444,0.00043835,120]
[330450347,1719421054065,-500.0,0.00043835,120]
[330450348,1719421054106,-500.0,0.00043835,120]
[330450349,1719421054146,-1870.01,0.00043835,120]
[330450350,1719421054186,-2873.59,0.00043835,120]
[330450351,1719421054225,-231.86702661,0.00043835,120]